fUSD/lending_fUSD_20250108
["ID","MTS","AMOUNT","RATE_DAILY","PERIOD"]
[348136314,1736350243231,-1045.37,0.00010542,2]
[348136316,1736350243242,-3862.12,0.00010542,2]
[348136318,1736350243253,-348.25324432,0.00010542,2]
[348136320,1736350243264,-3140.18,0.00010542,2]
[348136322,1736350243275,-690.35,0.00010547,2]
[348136325,1736350243287,-500.0,0.00010547,2]
[348136327,1736350243298,-666.48,0.00010547,2]
[348136329,1736350243309,-500.0,0.00010547,2]
[348136331,1736350243320,-977.3,0.00010547,2]
[348136333,1736350243331,-500.0,0.00010547,2]
[348136335,1736350243342,-500.0,0.00010547,2]
[348136337,1736350243353,-500.0,0.00010547,2]
[348136339,1736350243364,-201.67084511,0.00010567,2]
[348136342,1736350243374,-316.69791746,0.0001057,2]
[348136344,1736350243385,-567.4251,0.00010605,2]
[348136346,1736350243398,-150.23,0.00010657,2]
[348136348,1736350243410,-316.69791746,0.00010672,2]
[348136350,1736350243421,-1475.22,0.00010693,2]
[348136352,1736350243433,-3095.36,0.00010693,2]
[348136354,1736350243444,-1376.99,0.00010693,2]
[348136356,1736350243454,-220.386,0.000107,2]
[348136358,1736350243466,-1658.43,0.00010703,2]
[348136361,1736350243477,-1306.68,0.00010703,2]
[348136363,1736350243488,-1240.17,0.00010703,2]
[348136365,1736350243498,-565.71,0.00010703,2]
[348136368,1736350243509,-2048.08,0.00010703,2]
[348136371,1736350243521,-765.25,0.00010703,2]
[348136373,1736350243533,-1363.56,0.00010703,2]
[348136375,1736350243544,-500.0,0.00010703,2]
[348136376,1736350243555,-1672.87,0.00010703,2]
[348136378,1736350243566,-500.0,0.00010704,2]
[348136380,1736350243577,-500.0,0.00010704,2]
[348136382,1736350243589,-500.0,0.00010704,2]
[348136383,1736350243600,-637.35822537,0.00010704,2]
[348136385,1736350243611,-500.0,0.00010704,2]
[348136387,1736350243622,-644.89103729,0.00010704,2]
[348136388,1736350243633,-500.0,0.00010704,2]
[348136390,1736350243643,-626.09,0.00010704,2]
[348136392,1736350243658,-500.0,0.00010704,2]
[348136394,1736350243668,-500.0,0.00010704,2]
[348136396,1736350243679,-500.0,0.00010704,2]
[348136397,1736350243690,-500.0,0.00010704,2]
[348136399,1736350243700,-780.31,0.00010704,2]
[348136401,1736350243712,-1769.41,0.00010704,2]
[348136403,1736350243722,-642.34,0.00010704,2]
[348136405,1736350243733,-500.0,0.00010704,2]
[348136406,1736350243744,-738.9,0.00010704,2]
[348136408,1736350243755,-979.74,0.00010704,2]
[348136410,1736350243766,-500.0,0.00010704,2]
[348136411,1736350243778,-500.0,0.00010704,2]
[348136413,1736350243788,-1576.21,0.00010704,2]
[348136415,1736350243798,-1152.76,0.00010704,2]
[348136417,1736350243809,-1589.15,0.00010704,2]
[348136419,1736350243819,-636.8874462,0.00010704,2]
[348136420,1736350243831,-2988.36,0.00010704,2]
[348136422,1736350243841,-2284.01,0.00010704,2]
[348136424,1736350243853,-756.48,0.00010705,2]
[348136426,1736350243864,-500.0,0.00010705,2]
[348136427,1736350243875,-500.0,0.00010705,2]
[348136429,1736350243886,-500.0,0.00010705,2]
[348136431,1736350243901,-500.0,0.00010705,2]
[348136433,1736350243912,-500.0,0.00010705,2]
[348136435,1736350243923,-500.0,0.00010705,2]
[348136437,1736350243935,-1245.26,0.00010705,2]
[348136439,1736350243946,-500.0,0.00010705,2]
[348136441,1736350243958,-500.0,0.00010705,2]
[348136443,1736350243970,-500.0,0.00010705,2]
[348136444,1736350243983,-593.85,0.00010705,2]
[348136446,1736350243994,-500.0,0.00010705,2]
[348136448,1736350244005,-500.0,0.00010705,2]
[348136450,1736350244016,-4101.05,0.00010705,2]
[348136452,1736350244027,-947.05,0.00010705,2]
[348136454,1736350244039,-613.7,0.00010705,2]
[348136456,1736350244050,-540.51052207,0.00010705,2]
[348136458,1736350244064,-500.0,0.00010705,2]
[348136460,1736350244075,-500.0,0.00010705,2]
[348136462,1736350244087,-658.64,0.00010705,2]
[348136464,1736350244098,-500.0,0.00010705,2]
[348136466,1736350244109,-546.42,0.00010705,2]
[348136468,1736350244120,-500.0,0.00010705,2]
[348136470,1736350244131,-500.0,0.00010705,2]
[348136472,1736350244142,-500.0,0.00010705,2]
[348136475,1736350244155,-500.0,0.00010705,2]
[348136477,1736350244166,-500.0,0.00010705,2]
[348136479,1736350244176,-500.0,0.00010705,2]
[348136481,1736350244187,-2764.32,0.00010705,2]
[348136483,1736350244198,-417.52,0.00010705,2]
[348136485,1736350244209,-500.0,0.00010705,2]
[348136488,1736350244220,-500.0,0.00010705,2]
[348136490,1736350244231,-560.13376594,0.00010705,2]
[348136492,1736350244243,-500.0,0.00010705,2]
[348136494,1736350244254,-1556.51,0.00010705,2]
[348136496,1736350244265,-500.0,0.00010705,2]
[348136499,1736350244276,-571.43,0.00010705,2]
[348136501,1736350244287,-500.0,0.00010705,2]
[348136502,1736350244298,-561.21,0.00010705,2]
[348136503,1736350244310,-668.08,0.00010705,2]
[348136504,1736350244321,-624.25,0.00010705,2]
[348136505,1736350244332,-500.0,0.00010705,2]
[348136506,1736350244342,-500.0,0.00010705,2]
[348136507,1736350244351,-500.0,0.00010705,2]
[348136508,1736350244361,-469.1,0.00010705,2]
[348136509,1736350244370,-500.0,0.00010705,2]
[348136510,1736350244379,-500.0,0.00010705,2]
[348136511,1736350244389,-500.0,0.00010705,2]
[348136512,1736350244401,-1159.29,0.00010705,2]
[348136513,1736350244411,-500.0,0.00010705,2]
[348136514,1736350244420,-500.0,0.00010705,2]
[348136540,1736350244650,-556.36,0.00010705,2]
[348136543,1736350244724,-500.0,0.00010705,2]
[348136546,1736350244741,-732.94,0.00010705,2]
[348136548,1736350244750,-1177.53,0.00010705,2]
[348136550,1736350244760,-500.0,0.00010705,2]
[348136552,1736350244770,-634.44,0.00010705,2]
[348136553,1736350244779,-666.48,0.00010705,2]
[348136556,1736350244790,-2414.52,0.00010705,2]
[348136557,1736350244799,-702.19,0.00010705,2]
[348136559,1736350244809,-500.0,0.00010705,2]
[348136561,1736350244818,-172.89,0.00010705,2]
[348136562,1736350244827,-500.0,0.00010706,2]
[348136563,1736350244837,-500.0,0.00010706,2]
[348136564,1736350244846,-506.4,0.00010706,2]
[348136565,1736350244855,-500.0,0.00010706,2]
[348136566,1736350244865,-500.0,0.00010706,2]
[348136567,1736350244875,-500.0,0.00010706,2]
[348136568,1736350244885,-500.0,0.00010706,2]
[348136569,1736350244897,-3363.72,0.00010706,2]
[348136570,1736350244909,-1379.69,0.00010706,2]
[348136571,1736350244918,-1902.53,0.00010706,2]
[348136572,1736350244927,-1114.22,0.00010706,2]
[348136573,1736350244938,-789.34,0.00010706,2]
[348136574,1736350244948,-301.79,0.00010706,2]
[348136575,1736350244957,-1015.14,0.00010706,2]
[348136576,1736350244966,-2467.63,0.00010706,2]
[348136577,1736350244976,-717.44,0.00010706,2]
[348136578,1736350244985,-1352.5,0.00010706,2]
[348136579,1736350244995,-500.0,0.00010756,2]
[348136580,1736350245004,-316.69791746,0.00010775,2]
[348136581,1736350245014,-154.767345,0.00010782,2]
[348136582,1736350245023,-151.81807374,0.00010782,2]
[348136583,1736350245033,-1000.0,0.00010784,2]
[348136584,1736350245042,-137610.00110326,0.000108,2]
[348136585,1736350245053,-803.72,0.00010806,2]
[348136586,1736350245063,-635.85,0.00010807,2]
[348136587,1736350245073,-534.17,0.00010807,2]
[348136588,1736350245083,-605.38,0.00010807,2]
[348136589,1736350245092,-500.0,0.00010807,2]
[348136590,1736350245102,-500.0,0.00010807,2]
[348136591,1736350245112,-628.5,0.00010807,2]
[348136592,1736350245122,-844.83,0.00010807,2]
[348136593,1736350245132,-741.82,0.00010808,2]
[348136594,1736350245141,-2676.03,0.00010808,2]
[348136595,1736350245154,-1019.26,0.00010808,2]
[348136596,1736350245164,-1070.98,0.00010808,2]
[348136597,1736350245173,-1000.0,0.00010808,2]
[348136598,1736350245183,-777.78,0.00010808,2]
[348136599,1736350245193,-500.0,0.00010808,2]
[348136600,1736350245202,-2001.46,0.00010808,2]
[348136601,1736350245211,-1904.18,0.00010808,2]
[348136602,1736350245220,-381.06654106,0.00010816,2]
[348136603,1736350245229,-500.0,0.00010816,2]
[348136604,1736350245239,-535.47,0.00010816,2]
[348136605,1736350245248,-1210.07,0.00010816,2]
[348136606,1736350245258,-1670.91,0.00010816,2]
[348136607,1736350245267,-1153.8,0.00010816,2]
[348136608,1736350245276,-1106.893711,0.00010816,2]
[348136609,1736350245285,-921.49,0.00010816,2]
[348136610,1736350245294,-937.469333,0.00010816,2]
[348136611,1736350245304,-500.0,0.00010816,2]
[348136612,1736350245313,-3204.95,0.00010816,2]
[348136613,1736350245322,-565.58,0.00010816,2]
[348136614,1736350245332,-193.1,0.00010816,2]
[348136615,1736350245341,-500.0,0.00010816,2]
[348136616,1736350245351,-500.0,0.00010816,2]
[348136617,1736350245360,-500.0,0.00010816,2]
[348136619,1736350245370,-500.0,0.00010816,2]
[348136620,1736350245379,-500.0,0.00010816,2]
[348136621,1736350245388,-2952.1,0.00010816,2]
[348136622,1736350245397,-1473.31,0.00010816,2]
[348136623,1736350245406,-500.0,0.00010816,2]
[348136624,1736350245415,-500.0,0.00010816,2]
[348136626,1736350245425,-500.0,0.00010816,2]
[348136628,1736350245434,-1324.67,0.00010816,2]
[348136630,1736350245444,-500.0,0.00010816,2]
[348136631,1736350245453,-1328.06,0.00010816,2]
[348136632,1736350245462,-500.0,0.00010816,2]
[348136633,1736350245472,-500.0,0.00010816,2]
[348136634,1736350245482,-923.48,0.00010816,2]
[348136635,1736350245491,-175.016573,0.00010816,2]
[348136636,1736350245501,-2084.72,0.00010816,2]
[348136637,1736350245511,-1045.37,0.00010816,2]
[348136638,1736350245520,-3862.12,0.00010816,2]
[348136639,1736350245530,-3140.18,0.00010816,2]
[348136640,1736350245539,-690.35,0.00010821,2]
[348136641,1736350245549,-500.0,0.00010821,2]
[348136642,1736350245559,-666.48,0.00010821,2]
[348136643,1736350245571,-500.0,0.00010821,2]
[348136644,1736350245581,-500.0,0.00010821,2]
[348136645,1736350245590,-977.3,0.00010821,2]
[348136646,1736350245600,-500.0,0.00010821,2]
[348136647,1736350245609,-316.69791746,0.00010877,2]
[348136648,1736350245619,-478.18951071,0.000109,2]
[348136649,1736350245628,-478.18951064,0.000109,2]
[348136650,1736350245637,-478.18951064,0.000109,2]
[348136651,1736350245648,-201.67084511,0.000109,2]
[348136652,1736350245658,-587.0,0.00010933,2]
[348136653,1736350245667,-150.0,0.00010958,2]
[348136654,1736350245677,-5357.17180436,0.00010958,2]
[348136655,1736350245686,-1278.79,0.00010958,2]
[348136656,1736350245695,-500.0,0.00010959,2]
[348136657,1736350245705,-2000.0,0.00010959,2]
[348136658,1736350245714,-500.0,0.00010959,2]
[348136659,1736350245723,-151.0,0.00010959,2]
[348136660,1736350245732,-151.0,0.00010959,2]
[348136661,1736350245740,-151.0,0.00010959,2]
[348136662,1736350245749,-151.0,0.00010959,2]
[348136663,1736350245759,-151.0,0.00010959,2]
[348136664,1736350245768,-152.040021,0.00010959,2]
[348136665,1736350245778,-150.0,0.00010959,2]
[348136666,1736350245787,-1475.22,0.00010967,2]
[348136667,1736350245797,-3095.36,0.00010967,2]
[348136668,1736350245806,-1376.99,0.00010967,2]
[348136669,1736350245816,-189.06,0.00010968,2]
[348136670,1736350245825,-478.18951064,0.00010975,2]
[348136671,1736350245835,-1658.43,0.00010977,2]
[348136672,1736350245845,-1306.68,0.00010977,2]
[348136673,1736350245855,-1240.17,0.00010977,2]
[348136674,1736350245864,-565.71,0.00010977,2]
[348136675,1736350245874,-2048.08,0.00010977,2]
[348136676,1736350245884,-765.25,0.00010977,2]
[348136677,1736350245895,-1363.56,0.00010977,2]
[348136678,1736350245906,-500.0,0.00010977,2]
[348136679,1736350245916,-1672.87,0.00010977,2]
[348136680,1736350245926,-500.0,0.00010978,2]
[348136681,1736350245936,-500.0,0.00010978,2]
[348136682,1736350245946,-500.0,0.00010978,2]
[348136683,1736350245956,-456.96665599,0.00010978,2]
[348136684,1736350245965,-500.0,0.00010978,2]
[348136685,1736350245976,-626.09,0.00010978,2]
[348136686,1736350245986,-500.0,0.00010978,2]
[348136687,1736350245995,-500.0,0.00010978,2]
[348136688,1736350246005,-500.0,0.00010978,2]
[348136689,1736350246015,-500.0,0.00010978,2]
[348136690,1736350246024,-780.31,0.00010978,2]
[348136691,1736350246034,-1769.41,0.00010978,2]
[348136692,1736350246043,-642.34,0.00010978,2]
[348136693,1736350246053,-500.0,0.00010978,2]
[348136694,1736350246064,-738.9,0.00010978,2]
[348136695,1736350246075,-979.74,0.00010978,2]
[348136696,1736350246084,-500.0,0.00010978,2]
[348136697,1736350246094,-500.0,0.00010978,2]
[348136698,1736350246103,-1576.21,0.00010978,2]
[348136699,1736350246113,-1152.76,0.00010978,2]
[348136700,1736350246122,-1589.15,0.00010978,2]
[348136701,1736350246132,-2988.36,0.00010978,2]
[348136702,1736350246143,-2284.01,0.00010978,2]
[348136703,1736350246154,-756.48,0.00010979,2]
[348136704,1736350246163,-500.0,0.00010979,2]
[348136705,1736350246172,-500.0,0.00010979,2]
[348136707,1736350246182,-500.0,0.00010979,2]
[348136708,1736350246192,-309.48967281,0.00010979,2]
[348136709,1736350246201,-500.0,0.00010979,2]
[348136710,1736350246210,-500.0,0.00010979,2]
[348136711,1736350246220,-1245.26,0.00010979,2]
[348136712,1736350246229,-500.0,0.00010979,2]
[348136713,1736350246238,-500.0,0.00010979,2]
[348136714,1736350246247,-500.0,0.00010979,2]
[348136715,1736350246256,-593.85,0.00010979,2]
[348136716,1736350246266,-500.0,0.00010979,2]
[348136717,1736350246275,-500.0,0.00010979,2]
[348136718,1736350246284,-4101.05,0.00010979,2]
[348136719,1736350246293,-947.05,0.00010979,2]
[348136720,1736350246303,-613.7,0.00010979,2]
[348136721,1736350246312,-500.0,0.00010979,2]
[348136722,1736350246321,-227.89279089,0.00010979,2]
[348136723,1736350246331,-658.64,0.00010979,2]
[348136724,1736350246341,-500.0,0.00010979,2]
[348136725,1736350246351,-546.42,0.00010979,2]
[348136726,1736350246360,-500.0,0.00010979,2]
[348136727,1736350246369,-286.95613751,0.00010979,2]
[348136728,1736350246379,-500.0,0.00010979,2]
[348136729,1736350246389,-500.0,0.00010979,2]
[348136730,1736350246399,-240.57588224,0.00010979,2]
[348136731,1736350246409,-2764.32,0.00010979,2]
[348136732,1736350246418,-500.0,0.00010979,2]
[348136733,1736350246429,-500.0,0.00010979,2]
[348136734,1736350246439,-500.0,0.00010979,2]
[348136735,1736350246448,-1556.51,0.00010979,2]
[348136736,1736350246458,-500.0,0.00010979,2]
[348136737,1736350246468,-571.43,0.00010979,2]
[348136738,1736350246477,-500.0,0.00010979,2]
[348136739,1736350246487,-561.21,0.00010979,2]
[348136740,1736350246496,-668.08,0.00010979,2]
[348136741,1736350246506,-624.25,0.00010979,2]
[348136742,1736350246515,-500.0,0.00010979,2]
[348136743,1736350246524,-500.0,0.00010979,2]
[348136744,1736350246534,-500.0,0.00010979,2]
[348136745,1736350246543,-500.0,0.00010979,2]
[348136746,1736350246552,-500.0,0.00010979,2]
[348136747,1736350246562,-500.0,0.00010979,2]
[348136748,1736350246571,-1159.29,0.00010979,2]
[348136749,1736350246580,-500.0,0.00010979,2]
[348136750,1736350246589,-500.0,0.00010979,2]
[348136751,1736350246599,-556.36,0.00010979,2]
[348136752,1736350246608,-500.0,0.00010979,2]
[348136753,1736350246617,-732.94,0.00010979,2]
[348136754,1736350246626,-1177.53,0.00010979,2]
[348136755,1736350246635,-500.0,0.00010979,2]
[348136756,1736350246645,-634.44,0.00010979,2]
[348136757,1736350246657,-666.48,0.00010979,2]
[348136758,1736350246667,-2414.52,0.00010979,2]
[348136759,1736350246676,-702.19,0.00010979,2]
[348136760,1736350246685,-500.0,0.00010979,2]
[348136761,1736350246695,-316.69791746,0.00010979,2]
[348136762,1736350246704,-500.0,0.0001098,2]
[348136763,1736350246713,-500.0,0.0001098,2]
[348136764,1736350246723,-506.4,0.0001098,2]
[348136765,1736350246732,-500.0,0.0001098,2]
[348136766,1736350246741,-500.0,0.0001098,2]
[348136767,1736350246751,-500.0,0.0001098,2]
[348136768,1736350246760,-500.0,0.0001098,2]
[348136769,1736350246769,-3363.72,0.0001098,2]
[348136770,1736350246779,-1379.69,0.0001098,2]
[348136771,1736350246788,-1902.53,0.0001098,2]
[348136772,1736350246797,-1114.22,0.0001098,2]
[348136773,1736350246806,-789.34,0.0001098,2]
[348136774,1736350246816,-1015.14,0.0001098,2]
[348136775,1736350246826,-2467.63,0.0001098,2]
[348136776,1736350246836,-717.44,0.0001098,2]
[348136777,1736350246845,-1352.5,0.0001098,2]
[348136778,1736350246855,-500.0,0.00010986,2]
[348136779,1736350246864,-151.0,0.00010999,2]
[348136780,1736350246873,-151.0,0.00011,2]
[348136781,1736350246883,-151.0,0.00011,2]
[348136782,1736350246892,-151.0,0.00011,2]
[348136783,1736350246905,-550.0,0.00011,2]
[348136784,1736350246914,-952.14007403,0.00011,2]
[348136785,1736350246923,-308927.56767781,0.00011,2]
[348136786,1736350246933,-576.0178552,0.0001103,2]
[348136787,1736350246943,-151.0,0.0001108,2]
[348136788,1736350246954,-803.72,0.0001108,2]
[348136789,1736350246964,-635.85,0.00011081,2]
[348136790,1736350246975,-534.17,0.00011081,2]
[348136791,1736350246985,-605.38,0.00011081,2]
[348136792,1736350246995,-500.0,0.00011081,2]
[348136793,1736350247004,-500.0,0.00011081,2]
[348136794,1736350247013,-628.5,0.00011081,2]
[348136796,1736350247023,-844.83,0.00011081,2]
[348136798,1736350247033,-316.69791746,0.00011081,2]
[348136800,1736350247042,-741.82,0.00011082,2]
[348136802,1736350247052,-2676.03,0.00011082,2]
[348136804,1736350247064,-1019.26,0.00011082,2]
[348136805,1736350247075,-1070.98,0.00011082,2]
[348136807,1736350247084,-1000.0,0.00011082,2]
[348136809,1736350247094,-777.78,0.00011082,2]
[348136811,1736350247104,-500.0,0.00011082,2]
[348136813,1736350247114,-2001.46,0.00011082,2]
[348136814,1736350247124,-1904.18,0.00011082,2]
[348136815,1736350247134,-1184.0,0.0001109,2]
[348136816,1736350247144,-500.0,0.0001109,2]
[348136817,1736350247156,-535.47,0.0001109,2]
[348136818,1736350247167,-1210.07,0.0001109,2]
[348136819,1736350247177,-1670.91,0.0001109,2]
[348136820,1736350247187,-1153.8,0.0001109,2]
[348136821,1736350247196,-1106.893711,0.0001109,2]
[348136822,1736350247206,-921.49,0.0001109,2]
[348136823,1736350247216,-937.469333,0.0001109,2]
[348136824,1736350247226,-500.0,0.0001109,2]
[348136825,1736350247236,-3204.95,0.0001109,2]
[348136826,1736350247245,-565.58,0.0001109,2]
[348136827,1736350247255,-500.0,0.0001109,2]
[348136828,1736350247265,-500.0,0.0001109,2]
[348136829,1736350247275,-210.13219746,0.0001109,2]
[348136830,1736350247285,-500.0,0.0001109,2]
[348136831,1736350247294,-500.0,0.0001109,2]
[348136832,1736350247304,-2952.1,0.0001109,2]
[348136833,1736350247314,-1473.31,0.0001109,2]
[348136834,1736350247324,-500.0,0.0001109,2]
[348136835,1736350247334,-500.0,0.0001109,2]
[348136836,1736350247343,-500.0,0.0001109,2]
[348136837,1736350247354,-1324.67,0.0001109,2]
[348136838,1736350247364,-500.0,0.0001109,2]
[348136839,1736350247374,-1328.06,0.0001109,2]
[348136840,1736350247384,-500.0,0.0001109,2]
[348136841,1736350247393,-500.0,0.0001109,2]
[348136842,1736350247405,-923.48,0.0001109,2]
[348136843,1736350247416,-175.016573,0.0001109,2]
[348136844,1736350247426,-2084.72,0.0001109,2]
[348136845,1736350247436,-1045.37,0.0001109,2]
[348136846,1736350247446,-3862.12,0.0001109,2]
[348136847,1736350247457,-3140.18,0.0001109,2]
[348136848,1736350247467,-150.0,0.00011095,2]
[348136849,1736350247478,-429.70395169,0.00011095,2]
[348136850,1736350247487,-690.35,0.00011095,2]
[348136851,1736350247497,-500.0,0.00011095,2]
[348136852,1736350247507,-666.48,0.00011095,2]
[348136853,1736350247517,-500.0,0.00011095,2]
[348136854,1736350247527,-500.0,0.00011095,2]
[348136855,1736350247537,-977.3,0.00011095,2]
[348136856,1736350247547,-500.0,0.00011095,2]
[348136857,1736350247556,-3000.0,0.0001114,2]
[348136859,1736350247573,-316.69791746,0.00011184,2]
[348136861,1736350247584,-1000.0,0.000112,2]
[348136863,1736350247594,-1000.0,0.000112,2]
[348136865,1736350247604,-1000.0,0.000112,2]
[348136867,1736350247613,-1000.0,0.000112,2]
[348136868,1736350247623,-1000.0,0.000112,2]
[348136869,1736350247633,-1000.0,0.000112,2]
[348136870,1736350247643,-1000.0,0.000112,2]
[348136871,1736350247658,-1000.0,0.000112,2]
[348136872,1736350247667,-1000.0,0.000112,2]
[348136873,1736350247677,-1000.0,0.000112,2]
[348136874,1736350247686,-1000.0,0.000112,2]
[348136875,1736350247696,-1000.0,0.000112,2]
[348136876,1736350247706,-1000.0,0.000112,2]
[348136877,1736350247715,-1000.0,0.000112,2]
[348136878,1736350247725,-1000.0,0.000112,2]
[348136879,1736350247736,-1000.0,0.000112,2]
[348136880,1736350247747,-1000.0,0.000112,2]
[348136881,1736350247757,-1000.0,0.000112,2]
[348136882,1736350247767,-1000.0,0.000112,2]
[348136883,1736350247776,-1000.0,0.000112,2]
[348136884,1736350247786,-1000.0,0.000112,2]
[348136885,1736350247796,-1000.0,0.000112,2]
[348136886,1736350247805,-1000.0,0.000112,2]
[348136887,1736350247815,-1000.0,0.000112,2]
[348136888,1736350247824,-1000.0,0.000112,2]
[348136889,1736350247834,-1000.0,0.000112,2]
[348136890,1736350247843,-1000.0,0.000112,2]
[348136891,1736350248006,-1000.0,0.000112,2]
[348136892,1736350248016,-1000.0,0.000112,2]
[348136893,1736350248026,-1000.0,0.000112,2]
[348136894,1736350248036,-1000.0,0.000112,2]
[348136895,1736350248046,-1000.0,0.000112,2]
[348136896,1736350248058,-1000.0,0.000112,2]
[348136897,1736350248069,-1000.0,0.000112,2]
[348136898,1736350248079,-1000.0,0.000112,2]
[348136899,1736350248089,-1000.0,0.000112,2]
[348136900,1736350248099,-1000.0,0.000112,2]
[348136901,1736350248108,-1000.0,0.000112,2]
[348136902,1736350248118,-1000.0,0.000112,2]
[348136903,1736350248127,-1000.0,0.000112,2]
[348136904,1736350248136,-1000.0,0.000112,2]
[348136905,1736350248146,-1000.0,0.000112,2]
[348136906,1736350248163,-986.9299,0.000112,2]
[348136907,1736350248173,-150.0,0.00011232,2]
[348136908,1736350248182,-201.67084511,0.00011233,2]
[348136909,1736350248192,-14260.21120096,0.00011241,3]
[348136910,1736350248202,-1475.22,0.00011241,2]
[348136911,1736350248212,-3095.36,0.00011241,2]
[348136912,1736350248221,-1376.99,0.00011241,2]
[348136913,1736350248230,-250000.0,0.0001125,2]
[348136914,1736350248240,-11730.96104764,0.0001125,2]
[348136915,1736350248250,-572.390857,0.00011251,2]
[348136916,1736350248260,-3225.6340161,0.00011251,2]
[348136917,1736350248271,-824.7080913,0.00011251,2]
[348136918,1736350248280,-886.1906476,0.00011251,2]
[348136919,1736350248290,-1658.43,0.00011251,2]
[348136920,1736350248300,-1306.68,0.00011251,2]
[348136921,1736350248310,-1240.17,0.00011251,2]
[348136922,1736350248319,-565.71,0.00011251,2]
[348136923,1736350248329,-2048.08,0.00011251,2]
[348136924,1736350248339,-765.25,0.00011251,2]
[348136925,1736350248349,-1363.56,0.00011251,2]
[348136926,1736350248358,-12917.9267273,0.00011251,2]
[348136927,1736350248368,-500.0,0.00011251,2]
[348136928,1736350248378,-1672.87,0.00011251,2]
[348136929,1736350248388,-500.0,0.00011252,2]
[348136930,1736350248398,-500.0,0.00011252,2]
[348136931,1736350248414,-500.0,0.00011252,2]
[348136932,1736350248424,-500.0,0.00011252,2]
[348136933,1736350248435,-626.09,0.00011252,2]
[348136934,1736350248446,-500.0,0.00011252,2]
[348136935,1736350248456,-500.0,0.00011252,2]
[348136936,1736350248466,-500.0,0.00011252,2]
[348136937,1736350248476,-500.0,0.00011252,2]
[348136938,1736350248487,-780.31,0.00011252,2]
[348136939,1736350248498,-1769.41,0.00011252,2]
[348136940,1736350248509,-642.34,0.00011252,2]
[348136941,1736350248519,-500.0,0.00011252,2]
[348136942,1736350248529,-738.9,0.00011252,2]
[348136943,1736350248540,-979.74,0.00011252,2]
[348136944,1736350248549,-500.0,0.00011252,2]
[348136945,1736350248560,-500.0,0.00011252,2]
[348136946,1736350248570,-1576.21,0.00011252,2]
[348136947,1736350248580,-1152.76,0.00011252,2]
[348136948,1736350248590,-1589.15,0.00011252,2]
[348136949,1736350248600,-2988.36,0.00011252,2]
[348136950,1736350248611,-2284.01,0.00011252,2]
[348136951,1736350248621,-756.48,0.00011253,2]
[348136952,1736350248631,-500.0,0.00011253,2]
[348136953,1736350248640,-500.0,0.00011253,2]
[348136954,1736350248651,-500.0,0.00011253,2]
[348136955,1736350248661,-500.0,0.00011253,2]
[348136956,1736350248671,-500.0,0.00011253,2]
[348136957,1736350248681,-1245.26,0.00011253,2]
[348136958,1736350248690,-500.0,0.00011253,2]
[348136959,1736350248700,-500.0,0.00011253,2]
[348136960,1736350248710,-500.0,0.00011253,2]
[348136961,1736350248720,-593.85,0.00011253,2]